bitfinex-derivatives/quotes_SOLF0:USTF0_20250712
["timestamp","ask_amount","ask_price","bid_price","bid_amount"]
[1752318659181,3.42,162.82,162.76,3.37]
[1752318659377,3.42,162.82,162.8,6.1403]
[1752318659576,3.42,162.86,162.8,3.37]
[1752318659783,3.42,162.86,162.81,2.32499023]
[1752318660381,3.42,162.86,162.82,3.37]
[1752318660877,3.42,162.86,162.83,9.5091]
[1752318661071,3.42,162.86,162.83,3.37]
[1752318661478,3.42,162.86,162.84,6.1386]
[1752318662682,3.42,162.86,162.85,6.1385]
[1752318662980,3.42,162.86,162.83,3.37]
[1752318663185,3.42,162.85,162.83,9.5089]
[1752318663482,3.42,162.85,162.83,6.1389]
[1752318663871,3.42,162.85,162.84,6.1388]
[1752318666674,3.42,162.85,162.84,9.5088]
[1752318667382,3.42,162.85,162.81,3.37]
[1752318667980,3.42,162.85,162.8,2.32499023]
[1752318667981,9.5586,162.85,162.82,6.1396]
[1752318668184,0.04142429,162.86,162.81,3.37]
[1752318668386,3.46142429,162.86,162.83,3.37]
[1752318668579,0.04142429,162.86,162.83,3.37]
[1752318668775,3.42,162.85,162.84,9.5088]
[1752318677484,3.42,162.85,162.83,6.139]
[1752318677893,3.42,162.85,162.83,3.55]
[1752318678401,3.42,162.85,162.83,9.689]
[1752318679097,3.42,162.85,162.84,6.1388]
[1752318680100,3.42,162.85,162.83,9.6891]
[1752318683300,3.42,162.85,162.84,6.1388]
[1752318684405,9.5585,162.85,162.83,9.6892]
[1752318685905,3.39,162.84,162.83,9.6892]
[1752318688701,3.39,162.84,162.8,5.1524323]
[1752318689000,3.39,162.84,162.82,0.04203467]
[1752318690101,6.1394,162.83,162.82,0.04203467]
[1752318690294,9.5294,162.83,162.82,0.04203467]
[1752318693405,9.5294,162.83,162.81,9.6899]
[1752318693406,3.39,162.82,162.77,5.1524323]
[1752318693608,3.39,162.82,162.76,3.55]
[1752318693801,3.39,162.82,162.78,6.1409]
[1752318694007,3.39,162.8,162.78,9.6909]
[1752318695813,3.39,162.79,162.77,9.6914]
[1752318696412,3.39,162.79,162.76,6.1417]
[1752318696712,3.39,162.79,162.76,3.55]
[1752318697016,2.32499023,162.8,162.76,3.55]
[1752318697017,3.39,162.77,162.76,3.55]
[1752318697815,3.39,162.77,162.75,3.55]
[1752318698508,3.39,162.77,162.75,9.692]
[1752318698710,3.39,162.77,162.75,3.55]
[1752318698906,3.39,162.77,162.72,7.47742253]
[1752318699112,3.39,162.77,162.76,3.55]
[1752318699515,3.39,162.77,162.75,3.55]
[1752318700311,3.39,162.77,162.75,9.6919]
[1752318701115,9.5315,162.77,162.75,9.6919]
[1752318701318,3.39,162.76,162.75,9.6919]
[1752318702120,3.39,162.76,162.75,3.55]
[1752318702622,3.39,162.76,162.74,9.6924]
[1752318703119,3.39,162.76,162.74,6.1424]
[1752318703321,3.39,162.76,162.72,3.55]
[1752318703518,5.71499023,162.76,162.72,3.55]
[1752318703709,3.39,162.75,162.72,3.55]
[1752318703910,3.39,162.75,162.73,6.1428]
[1752318704114,3.39,162.75,162.73,9.6928]
[1752318704521,9.5322,162.75,162.73,9.6928]
[1752318704819,3.45,162.74,162.73,9.6928]
[1752318706218,3.45,162.74,162.73,3.55]
[1752318708220,3.45,162.74,162.73,9.693]
[1752318710121,3.45,162.74,162.73,6.143]
[1752318711823,3.45,162.74,162.73,9.553]
[1752318712524,3.45,162.74,162.73,6.143]
[1752318712726,3.45,162.74,162.73,9.553]
[1752318713430,3.45,162.74,162.71,3.41]
[1752318713623,3.45,162.74,162.72,3.41]
[1752318713819,3.45,162.74,162.73,3.41]
[1752318715127,3.45,162.74,162.73,9.553]
[1752318716332,3.45,162.74,162.73,3.41]
[1752318716926,3.45,162.74,162.73,9.553]
[1752318718325,3.45,162.74,162.72,9.5532]
[1752318718828,3.45,162.74,162.73,6.143]
[1752318719125,3.45,162.74,162.73,9.553]
[1752318722824,3.45,162.74,162.72,9.5532]
[1752318723428,3.45,162.73,162.72,3.41]
[1752318723827,3.45,162.73,162.71,11.04188867]
[1752318725124,3.45,162.73,162.72,3.41]
[1752318725331,3.45,162.73,162.72,9.5534]
[1752318727133,3.45,162.73,162.71,7.63198867]
[1752318727734,1.52875343,162.75,162.7,3.41]
[1752318727935,3.45,162.71,162.68,3.41]
[1752318728235,3.45,162.71,162.69,3.41]
[1752318728432,3.45,162.71,162.69,9.5545]
[1752318728639,3.4903642,162.71,162.69,9.5545]
[1752318729338,6.1841642,162.71,162.69,9.5545]
[1752318729637,3.45,162.7,162.69,3.41]
[1752318729938,3.45,162.7,162.68,9.5547]
[1752318730933,3.45,162.7,162.69,6.1445]
[1752318731146,3.45,162.7,162.69,9.5545]
[1752318732144,3.45,162.7,162.68,6.1447]
[1752318732440,3.45,162.7,162.68,9.5547]
[1752318732641,3.45,162.7,162.69,6.1445]
[1752318732939,3.45,162.7,162.69,9.5545]
[1752318736644,3.45,162.7,162.69,6.1445]
[1752318736846,3.45,162.7,162.69,9.7145]
[1752318737547,3.45,162.7,162.69,6.1445]
[1752318737944,3.45,162.7,162.69,9.7145]
[1752318738550,3.45,162.7,162.68,6.1448]
[1752318738844,4.93828867,162.7,162.67,3.57]
[1752318739036,3.6,162.68,162.67,9.715]
[1752318739445,3.6,162.68,162.67,6.145]
[1752318739844,3.6,162.68,162.67,9.715]
[1752318741548,7.67255287,162.71,162.68,6.1448]
[1752318741753,3.6,162.7,162.69,3.57]
[1752318743151,3.6,162.7,162.69,9.7145]
[1752318745258,3.6,162.7,162.68,6.1448]
[1752318745460,3.6,162.7,162.68,9.7148]
[1752318745657,6.1443,162.7,162.68,6.1448]
[1752318745859,3.6,162.69,162.67,3.57]
[1752318746255,3.6,162.69,162.68,6.1449]
[1752318746456,3.6,162.68,162.67,3.57]
[1752318747161,3.6,162.68,162.67,9.7151]
[1752318748156,3.6,162.68,162.67,6.1451]
[1752318748356,3.6,162.68,162.66,6.1454]
[1752318748563,3.6,162.68,162.66,3.57]
[1752318748761,3.6,162.68,162.67,3.57]
[1752318749355,3.6,162.68,162.67,9.7152]
[1752318753564,3.6,162.68,162.67,11.20348867]
[1752318754070,3.6,162.68,162.67,9.7152]
[1752318754263,3.6,162.68,162.67,6.1452]
[1752318754667,3.6,162.68,162.67,9.7152]
[1752318756168,3.64249263,162.69,162.68,9.7149]
[1752318756365,0.04249263,162.69,162.68,9.7149]
[1752318756769,3.64249263,162.69,162.68,9.7149]
[1752318757971,0.04249263,162.69,162.68,11.20368364]
[1752318759372,0.04249263,162.69,162.68,9.7149]
[1752318759566,0.04249263,162.69,162.68,11.20349558]
[1752318760472,3.64249263,162.69,162.68,11.20349558]
[1752318761177,3.64249263,162.69,162.68,16.34867976]
[1752318762879,3.64249263,162.69,162.68,5.14518418]
[1752318763173,3.64249263,162.69,162.67,8.71518418]
[1752318763674,3.64249263,162.69,162.68,6.1449]
[1752318764176,3.64249263,162.69,162.68,14.86008418]
[1752318766075,0.04249263,162.69,162.68,14.86008418]
[1752318767680,3.64249263,162.69,162.68,16.34867976]
[1752318772084,3.64249263,162.69,162.68,11.20349558]
[1752318772284,3.64249263,162.69,162.68,16.36793319]
[1752318772486,3.64249263,162.69,162.68,11.20349558]
[1752318772681,3.64249263,162.69,162.68,16.36842466]
[1752318772885,3.64249263,162.69,162.68,11.20349558]
[1752318773084,3.64249263,162.69,162.68,16.36822245]
[1752318774285,3.64249263,162.69,162.68,11.20349558]
[1752318775684,5.13108821,162.69,162.66,10.21185777]
[1752318775889,5.13108821,162.69,162.66,5.16857248]
[1752318775890,3.6,162.68,162.66,5.16857248]
[1752318776587,3.6,162.68,162.66,8.49857248]
[1752318778100,3.6,162.68,162.66,14.64407248]
[1752318778593,3.6,162.67,162.66,11.31417248]
[1752318778790,3.64249263,162.69,162.66,6.65716806]
[1752318778986,3.64249263,162.69,162.67,5.16857248]
[1752318779185,9.78729263,162.69,162.67,6.1452]
[1752318779389,3.6,162.68,162.67,6.1452]
[1752318781690,3.6,162.68,162.67,9.4752]
[1752318786393,3.6,162.68,162.67,14.64377248]
[1752318788497,3.6,162.69,162.68,6.1445]
[1752318788697,3.6,162.69,162.68,9.4745]
[1752318788902,3.6,162.69,162.68,10.96362119]
[1752318789395,3.6,162.69,162.68,16.13219367]
[1752318790302,0.04104331,162.7,162.65,6.89090195]
[1752318790502,1.48912119,162.66,162.61,4.81912119]
[1752318790701,3.6,162.65,162.62,3.33]
[1752318790891,3.6,162.64,162.62,3.33]
[1752318792399,5.08912119,162.64,162.62,3.33]
[1752318792594,3.6,162.63,162.62,3.33]
[1752318797208,6.1468,162.63,162.62,3.33]
[1752318797403,9.4368,162.63,162.62,3.33]
[1752318798609,3.29,162.62,162.61,3.28]
[1752318801812,3.29,162.62,162.61,9.4275]
[1752318802800,3.29,162.64,162.62,3.28]
[1752318803209,3.29,162.64,162.61,6.1475]
[1752318803400,3.29,162.64,162.63,3.28]
[1752318803607,3.29,162.64,162.62,3.28]
[1752318804112,9.4364,162.64,162.62,3.28]
[1752318804310,3.29,162.63,162.62,3.28]
[1752318806712,3.29,162.63,162.61,6.1475]
[1752318807015,3.29,162.63,162.61,3.28]
[1752318807312,3.29,162.63,162.62,3.28]
[1752318814110,3.29,162.63,162.62,9.4271]
[1752318814709,6.18991377,162.65,162.62,3.28]
[1752318814710,3.29,162.64,162.62,3.28]
[1752318814917,3.33371377,162.65,162.64,3.28]
[1752318815315,3.29,162.65,162.64,3.28]
[1752318816114,3.29,162.65,162.64,9.4264]
[1752318816915,3.29,162.65,162.57,3.28]
[1752318817217,4.77952008,162.65,162.62,3.28]
[1752318817510,0.03882248,162.63,162.62,9.4271]
[1752318817815,3.32882248,162.63,162.62,9.4271]
[1752318818319,0.03882248,162.63,162.62,9.4271]
[1752318825720,1.48952008,162.67,162.66,3.61]
[1752318826114,4.82952008,162.67,162.65,9.7559]
[1752318826311,3.34,162.66,162.65,9.7559]
[1752318834035,3.34,162.66,162.65,3.61]
[1752318835533,3.34,162.66,162.64,6.1463]
[1752318835735,3.34,162.66,162.64,9.7563]
[1752318835936,3.34,162.66,162.65,3.61]
[1752318836138,3.34,162.66,162.65,9.756]
[1752318840637,3.38644769,162.67,162.66,9.7556]
[1752318840840,0.04644769,162.67,162.66,9.7556]
[1752318841229,1.48952008,162.7,162.66,3.61]
[1752318841434,3.34,162.69,162.67,3.61]
[1752318841739,3.34,162.73,162.69,3.61]
[1752318841940,3.34,162.73,162.72,6.1433]
[1752318842140,3.34,162.73,162.72,9.7533]
[1752318844432,3.34,162.74,162.73,9.7527]
[1752318844635,3.34,162.75,162.73,5.09952008]
[1752318844832,3.34,162.75,162.74,3.61]
[1752318845039,3.34,162.75,162.74,9.7523]
[1752318846140,3.34,162.75,162.74,11.24182008]
[1752318846540,3.34,162.75,162.74,9.7523]
[1752318848942,3.34,162.75,162.74,3.61]
[1752318849945,3.34,162.75,162.74,9.7526]
[1752318876264,3.54,162.74,162.72,3.45905684]
[1752318876966,3.54,162.74,162.73,6.1428]
[1752318878465,3.54,162.74,162.73,9.5628]
[1752318896872,3.54,162.74,162.73,6.1428]
[1752318897379,3.54,162.74,162.73,9.4128]
[1752318897872,3.54,162.74,162.73,6.1428]
[1752318900278,3.54,162.74,162.73,9.4128]
[1752318908982,3.40197834,162.76,162.75,9.4122]
[1752318909176,3.40197834,162.76,162.75,10.90172008]
[1752318910385,0.04197834,162.76,162.75,10.90172008]
[1752318910585,3.40197834,162.76,162.75,10.90172008]
[1752318912089,3.40197834,162.76,162.75,16.06839688]
[1752318917194,3.40197834,162.76,162.75,10.90172008]
[1752318918094,3.40197834,162.76,162.75,16.06839688]
[1752318918490,3.61,162.78,162.77,9.6515]
[1752318918693,3.61,162.8,162.78,3.51]
[1752318919099,3.61,162.8,162.79,6.1407]
[1752318919293,5.09952008,162.8,162.79,6.1407]
[1752318921591,5.09952008,162.8,162.79,9.6507]
[1752318922493,3.61,162.8,162.79,6.1407]
[1752318922698,3.61,162.79,162.78,0.041158]
[1752318922888,5.09952008,162.79,162.78,0.041158]
[1752318927302,3.61,162.78,162.73,6.1429]
[1752318927497,5.09952008,162.74,162.73,6.1429]
[1752318929296,5.09952008,162.74,162.73,9.6529]
[1752318931507,3.61,162.74,162.73,9.6529]
[1752318932208,5.09952008,162.74,162.72,0.04035117]
[1752318932406,5.09952008,162.73,162.72,0.04035117]
[1752318932704,5.09952008,162.73,162.71,3.51]
[1752318932897,3.61,162.72,162.7,11.30385574]
[1752318933099,5.09952008,162.72,162.71,0.04711209]
[1752318934901,11.24292008,162.72,162.71,0.04711209]
[1752318935101,3.61,162.71,162.65,8.66995574]
[1752318935404,5.16766788,162.75,162.65,8.66995574]
[1752318935405,3.61,162.66,162.65,3.51]
[1752318935605,3.61,162.66,162.65,9.656]
[1752318936408,3.61,162.66,162.65,6.146]
[1752318936801,5.09952008,162.66,162.65,6.146]
[1752318937202,3.61,162.66,162.65,6.146]
[1752318937406,3.61,162.66,162.65,9.656]
[1752318939010,3.61,162.66,162.65,6.146]
[1752318939205,3.61,162.65,162.64,0.03870171]
[1752318942099,3.61,162.65,162.64,6.18510171]
[1752318942998,3.61,162.65,162.64,9.69510171]
[1752318944504,3.65231887,162.67,162.64,1.52822179]
[1752318944697,3.65231887,162.67,162.65,4.99952008]
[1752318944698,3.39,162.66,162.65,4.99952008]
[1752318944897,3.39,162.66,162.65,3.51]
[1752318945305,3.39,162.66,162.65,9.656]
[1752318948300,3.39,162.66,162.65,11.14552008]
[1752318949011,0.04231887,162.67,162.66,6.1456]
[1752318949212,0.04231887,162.67,162.66,10.94512008]
[1752318950517,3.43231887,162.67,162.66,10.94512008]
[1752318951811,3.43231887,162.67,162.66,6.1456]
[1752318952416,3.43231887,162.67,162.66,9.4556]
[1752318954619,3.43231887,162.67,162.66,6.1456]
[1752318955310,3.43231887,162.67,162.66,9.4556]
[1752318961924,3.43231887,162.67,162.65,4.79952008]
[1752318962118,3.43231887,162.67,162.65,1.48952008]
[1752318962322,3.43231887,162.67,162.66,3.31]
[1752318962523,3.43231887,162.67,162.65,9.4559]
[1752318965126,3.43231887,162.67,162.65,6.1459]
[1752318965419,3.43231887,162.67,162.65,3.31]
[1752318965618,4.92183895,162.67,162.64,6.18490171]
[1752318965920,1.48952008,162.65,162.64,0.03870171]
[1752318966122,4.87952008,162.65,162.64,0.03870171]
[1752318966927,11.02552008,162.65,162.64,0.03870171]
[1752318967124,3.39,162.64,162.58,5.13204634]
[1752318967330,1.48952008,162.61,162.58,3.31]
[1752318967532,3.39,162.6,162.58,3.31]
[1752318967725,3.39,162.6,162.59,6.1483]
[1752318967922,3.39,162.6,162.58,3.31]
[1752318968428,3.39,162.6,162.57,3.31]
[1752318969123,3.39,162.6,162.58,3.31]
[1752318969530,3.39,162.6,162.57,3.31]
[1752318969730,3.39,162.6,162.58,6.1486]
[1752318969929,3.39,162.6,162.58,9.4586]
[1752318970329,3.39,162.6,162.58,3.31]
[1752318970536,3.39,162.6,162.57,9.4589]
[1752318970833,3.39,162.58,162.54,3.31]
[1752318971231,3.39,162.58,162.52,179.77]
[1752318971432,3.39,162.57,162.54,3.31]
[1752318971838,3.4344484,162.57,162.54,3.31]
[1752318972231,3.39,162.56,162.52,179.77]
[1752318972734,3.39,162.56,162.53,3.31]
[1752318973334,3.4344484,162.57,162.54,3.31]
[1752318974136,3.39,162.56,162.55,9.4598]
[1752318978537,3.6344484,162.57,162.56,6.1494]
[1752318978737,3.6344484,162.57,162.56,9.6094]
[1752318979036,3.6344484,162.57,162.56,3.46]
[1752318980238,3.6344484,162.57,162.56,9.6094]
[1752318980640,3.6344484,162.57,162.56,6.1494]
[1752318980837,3.6344484,162.57,162.55,9.6096]
[1752318981145,3.6344484,162.57,162.5,5.13204634]
[1752318981146,3.6344484,162.57,162.51,5.7898312]
[1752318981343,3.6344484,162.57,162.55,6.1495]
[1752318981642,3.6344484,162.57,162.55,9.6095]
[1752318981942,3.6344484,162.57,162.55,3.46]
[1752318982143,3.6344484,162.57,162.54,3.46]
[1752318982841,3.6344484,162.57,162.55,6.1497]
[1752318983036,3.6344484,162.57,162.54,3.46]
[1752318983235,3.6344484,162.57,162.53,3.46]
[1752318983432,6.1934484,162.57,162.53,3.46]
[1752318983638,3.59,162.56,162.53,3.46]
[1752318984041,3.59,162.56,162.53,9.6103]
[1752318985333,3.59,162.56,162.53,6.1503]
[1752318986835,3.59,162.56,162.54,6.1501]
[1752318987342,6.1494,162.56,162.53,6.1504]
[1752318987540,3.59,162.55,162.53,6.1504]
[1752318988545,3.59,162.55,162.54,6.1501]
[1752318990446,3.59,162.55,162.53,9.6103]
[1752318994354,3.59,162.55,162.53,6.1503]
[1752318995353,3.59,162.55,162.53,9.6103]
[1752318996352,3.59,162.55,162.53,6.1503]
[1752318996849,3.59,162.55,162.53,9.6103]
[1752318997155,3.59,162.55,162.53,6.1503]
[1752318997658,3.59,162.55,162.53,9.6103]
[1752318997957,3.59,162.55,162.53,6.1503]
[1752318998355,5.08165765,162.55,162.52,11.10245765]
[1752318998555,3.59,162.54,162.52,9.6108]
[1752318999154,9.7403,162.54,162.52,3.46]
[1752318999456,3.59,162.53,162.52,3.46]
[1752318999957,3.59,162.53,162.52,9.6109]
[1752319000153,3.59,162.53,162.52,3.46]
[1752319001157,3.59,162.53,162.52,9.6109]
[1752319001359,3.59,162.56,162.53,3.46]
[1752319001556,3.59,162.56,162.53,4.95165765]
[1752319001760,3.59,162.56,162.54,3.46]
[1752319002852,3.59,162.55,162.54,9.6101]
[1752319003058,3.6344484,162.57,162.55,3.46]
[1752319004164,6.1935484,162.57,162.55,3.46]
[1752319004362,3.59,162.56,162.54,11.10175765]
[1752319004865,3.59,162.56,162.54,9.6101]
[1752319006361,3.59,162.56,162.55,6.1498]
[1752319006563,0.0444484,162.57,162.56,3.47]
[1752319006762,0.0444484,162.57,162.56,5.80021469]
[1752319007364,0.0444484,162.57,162.56,3.47]
[1752319007562,0.0444484,162.57,162.56,5.80021469]
[1752319007762,0.0444484,162.57,162.56,11.94961469]
[1752319007958,6.1472,162.62,162.56,11.94961469]
[1752319007959,3.44,162.6,162.56,5.80021469]
[1752319008163,3.44,162.59,162.57,3.47]
[1752319008658,3.44,162.61,162.57,3.47]
[1752319008867,3.44,162.65,162.59,3.47]
[1752319009470,6.1466,162.64,162.6,6.1479]
[1752319009767,3.44,162.63,162.6,9.6179]
[1752319010067,3.44,162.63,162.62,3.47]
[1752319010260,3.44,162.64,162.62,3.47]
[1752319010465,3.44,162.67,162.58,5.13204634]
[1752319010664,3.44,162.63,162.6,3.47]
[1752319011063,3.44,162.63,162.62,6.1471]
[1752319011559,3.44,162.63,162.62,9.6171]
[1752319012569,2.33021469,162.67,162.59,7.49331953]
[1752319012570,3.44,162.65,162.64,3.47]
[1752319012971,3.44,162.65,162.62,9.6169]
[1752319013470,3.44,162.65,162.63,3.47]
[1752319013768,3.44,162.65,162.63,6.1466]
[1752319014169,3.44,162.65,162.63,9.6166]
[1752319017168,3.44,162.65,162.63,3.47]
[1752319017474,3.44,162.65,162.64,9.6163]
[1752319019875,3.44,162.65,162.63,9.6166]
[1752319022078,3.44,162.65,162.61,2.33021469]
[1752319022079,3.44,162.65,162.62,6.147]
[1752319022374,3.44,162.65,162.62,9.617]
[1752319022570,3.44,162.65,162.62,3.47]
[1752319023176,3.44,162.64,162.62,3.47]
[1752319024267,3.44,162.64,162.62,9.617]
[1752319025571,3.44,162.64,162.62,6.147]
[1752319025776,3.44,162.64,162.61,6.1474]
[1752319025980,3.44,162.64,162.61,9.6174]
[1752319026671,3.44,162.64,162.6,6.1477]
[1752319026672,3.44,162.63,162.6,6.1477]
[1752319026873,3.44,162.63,162.6,9.6177]
[1752319027275,3.44,162.63,162.6,6.1477]
[1752319027584,3.44,162.61,162.59,6.1481]
[1752319027977,3.44,162.61,162.59,9.6181]
[1752319028483,3.44,162.6,162.58,9.6184]
[1752319029377,3.44,162.6,162.58,6.1484]
[1752319030380,3.44,162.6,162.58,9.6184]
[1752319033390,3.44,162.6,162.58,3.47]
[1752319033888,3.44,162.6,162.57,9.6187]
[1752319033889,9.5879,162.6,162.57,9.6187]
[1752319034190,3.44,162.59,162.57,3.47]
[1752319037292,3.44,162.59,162.57,9.6189]
[1752319041491,3.44,162.59,162.58,9.6686]
[1752319041793,3.27,162.6,162.59,3.52]
[1752319042892,3.27,162.6,162.59,9.6682]
[1752319043291,3.27,162.6,162.59,3.52]
[1752319043489,3.27,162.6,162.58,3.52]
[1752319044089,3.27,162.6,162.58,9.6685]
[1752319045292,3.27,162.6,162.59,6.1482]
[1752319046492,3.27,162.6,162.59,9.6682]
[1752319046685,3.27,162.64,162.58,3.52]
[1752319046889,3.27,162.64,162.59,2.33021469]
[1752319047089,3.27,162.64,162.6,3.52]
[1752319047292,3.27,162.64,162.61,9.6674]
[1752319047585,3.27,162.64,162.62,3.52]
[1752319047786,3.27,162.64,162.62,9.6669]
[1752319048893,3.27,162.64,162.63,9.6667]
[1752319051486,3.27,162.65,162.63,3.52]
[1752319051693,3.27,162.65,162.61,2.33021469]
[1752319051898,3.27,162.65,162.63,3.52]
[1752319052096,3.30929006,162.65,162.64,9.6663]
[1752319053796,0.03929006,162.65,162.64,9.6663]
[1752319058600,0.03929006,162.65,162.64,14.81484494]
[1752319059115,3.27,162.68,162.67,6.1452]
[1752319059313,3.27,162.68,162.67,9.6652]
[1752319060315,3.27,162.71,162.65,2.33021469]
[1752319060515,3.27,162.71,162.66,3.55990519]
[1752319061715,3.27,162.7,162.66,3.55990519]
[1752319062014,3.27,162.7,162.66,0.03990519]
[1752319062214,6.1445,162.69,162.66,0.03990519]
[1752319062410,3.27,162.68,162.66,0.03990519]
[1752319062810,3.27,162.68,162.66,6.18550519]
[1752319063018,3.27,162.68,162.66,9.70550519]
[1752319064118,3.27,162.68,162.66,3.55990519]
[1752319065417,3.27,162.68,162.66,9.70540519]
[1752319066719,3.27,162.68,162.66,6.18540519]
[1752319066921,3.27,162.68,162.67,3.29]
[1752319068814,3.27,162.68,162.66,6.18540519]
[1752319069020,3.27,162.68,162.66,9.47540519]
[1752319069817,3.27,162.68,162.67,3.29]
[1752319071421,3.27,162.68,162.67,9.4352]
[1752319072022,3.54,162.7,162.68,3.29]
[1752319072322,3.54,162.7,162.69,3.29]
[1752319072918,3.54,162.7,162.69,9.4345]
[1752319082833,3.54,162.69,162.67,3.29]
[1752319083021,5.02862119,162.69,162.66,3.32990519]
[1752319083225,3.54,162.68,162.66,6.18530519]
[1752319083428,3.54,162.68,162.67,3.29]
[1752319084122,3.54,162.68,162.67,9.4352]
[1752319087934,3.54,162.68,162.67,3.29]
[1752319090933,3.54,162.68,162.66,1.52852638]
[1752319091137,3.54,162.68,162.66,4.81852638]
[1752319091537,3.54,162.68,162.66,10.96412638]
[1752319091738,3.54,162.68,162.67,3.29]
[1752319092139,3.54,162.68,162.66,7.67412638]
[1752319092535,3.54,162.68,162.67,3.29]
[1752319094139,3.54,162.68,162.66,7.67412638]
[1752319094334,3.54,162.68,162.66,10.96412638]
[1752319095236,3.54,162.68,162.67,3.38]
[1752319096435,3.54,162.68,162.66,7.67412638]
[1752319096642,3.54,162.68,162.66,0.03990519]
[1752319096841,1.48862119,162.67,162.66,0.03990519]
[1752319097041,4.78862119,162.67,162.66,0.03990519]
[1752319098141,10.93382119,162.67,162.66,0.03990519]
[1752319102046,4.78862119,162.67,162.66,0.03990519]
[1752319103046,3.3,162.67,162.66,0.03990519]
[1752319109446,3.3,162.67,162.66,3.41990519]
[1752319109648,3.3,162.68,162.66,3.41990519]
[1752319110041,3.3,162.67,162.66,6.18530519]
[1752319110545,3.3,162.67,162.66,9.56530519]
[1752319116954,3.3,162.7,162.66,3.41990519]
[1752319117154,3.3,162.7,162.67,1.48929335]
[1752319117453,3.3,162.7,162.68,3.38]
[1752319117653,3.3,162.7,162.67,11.01429335]
[1752319119552,3.3,162.7,162.68,3.38]
[1752319121261,3.3,162.7,162.68,9.5247]
[1752319121461,3.3,162.7,162.68,6.1447]
[1752319121657,3.3,162.7,162.69,4.86884505]
[1752319121851,3.3,162.71,162.69,1.48884505]
[1752319122056,3.3,162.74,162.71,3.38]
[1752319122253,3.3,162.74,162.72,1.48884505]
[1752319122453,3.3,162.74,162.71,11.0582032]
[1752319122654,3.3,162.74,162.71,4.9147032]
[1752319122860,3.3,162.74,162.72,3.38]
[1752319123262,3.3,162.74,162.71,9.56945815]
[1752319123463,3.3,162.74,162.71,11.0583032]
[1752319124965,3.3,162.74,162.71,7.6783032]
[1752319125268,3.3,162.74,162.72,3.3]
[1752319125667,3.3,162.74,162.71,10.9783032]
[1752319128067,3.3,162.74,162.71,7.6783032]
[1752319128272,3.3,162.74,162.72,3.3]
[1752319129475,3.3,162.74,162.71,10.9783032]
[1752319129768,3.45,162.73,162.71,4.8347032]
[1752319131070,9.5933,162.72,162.71,0.04585815]
[1752319132666,11.08214505,162.72,162.71,0.04585815]
[1752319133472,9.5933,162.72,162.71,0.04585815]
[1752319137781,11.08214505,162.72,162.71,0.04585815]
[1752319138070,3.45,162.68,162.66,3.3]
[1752319139076,3.45,162.68,162.67,6.1452]
[1752319139278,3.45,162.68,162.67,9.4452]
[1752319141285,3.45,162.7,162.69,3.3]
[1752319141475,3.45,162.71,162.7,3.3]
[1752319141675,6.1428,162.74,162.7,4.78884505]